fUST/lending_fUST_20240906
["ID","MTS","AMOUNT","RATE_DAILY","PERIOD"]
[337391618,1725637189000,-500.0,0.00020821,2]
[337391619,1725637189081,-500.0,0.00020821,2]
[337391620,1725637189189,-597.14,0.00020821,2]
[337391621,1725637189268,-500.0,0.00020821,2]
[337391622,1725637189371,-529.29,0.00020821,2]
[337391623,1725637189476,-709.35,0.00020821,2]
[337391624,1725637189581,-722.337951,0.00020821,2]
[337391625,1725637189662,-1771.65,0.00020821,2]
[337391626,1725637189767,-500.0,0.00020821,2]
[337391627,1725637189851,-1886.71,0.00020821,2]
[337391628,1725637189963,-722.337951,0.00020821,2]
[337391629,1725637190080,-1497.7,0.00020821,2]
[337391631,1725637190185,-500.0,0.00020821,2]
[337391632,1725637190296,-500.0,0.00020821,2]
[337391633,1725637190380,-500.0,0.00020821,2]
[337391634,1725637190489,-6237.69,0.00020821,2]
[337391635,1725637190573,-51565.56,0.00020821,2]
[337391636,1725637190652,-1073.24,0.00020821,2]
[337391637,1725637190733,-593.01750552,0.00020821,2]
[337391638,1725637190836,-1705.58,0.00020821,2]
[337391639,1725637190937,-907.97,0.00020821,2]
[337391640,1725637191038,-543.29962385,0.00020821,2]
[337391641,1725637191118,-500.0,0.00020821,2]
[337391642,1725637191198,-1508.74,0.00020821,2]
[337391643,1725637191281,-990.33,0.00020821,2]
[337391644,1725637191357,-500.0,0.00020821,2]
[337391645,1725637191435,-1638.19,0.00020821,2]
[337391646,1725637191508,-500.0,0.00020821,2]
[337391647,1725637191576,-500.0,0.00020821,2]
[337391648,1725637191648,-500.0,0.00020821,2]
[337391649,1725637191730,-500.0,0.00020821,2]
[337391650,1725637191811,-749.89,0.00020821,2]
[337391651,1725637191891,-500.0,0.00020821,2]
[337391652,1725637191968,-500.0,0.00020821,2]
[337391653,1725637192048,-1588.35,0.00020821,2]
[337391654,1725637192123,-814.51,0.00020821,2]
[337391655,1725637192193,-680.85,0.00020821,2]
[337391656,1725637192260,-39993.96,0.00020821,2]
[337391657,1725637192328,-650.94328,0.00020986,2]
[337391658,1725637192395,-1128.0,0.00021,2]
[337391659,1725637192522,-1000.0,0.00021,21]
[337391660,1725637192590,-3000.0,0.00021,2]
[337391661,1725637192665,-3000.0,0.0002101,2]
[337391662,1725637192738,-3000.0,0.0002102,2]
[337391663,1725637192818,-1500.0,0.00021022,2]
[337391664,1725637192888,-1500.0,0.00021022,2]
[337391665,1725637192960,-3000.0,0.0002103,2]
[337391666,1725637193032,-3000.0,0.0002104,2]
[337391667,1725637193101,-369.87386292,0.00021044,2]
[337391668,1725637193171,-844.61315702,0.00021044,2]
[337391669,1725637193243,-3674.143372,0.0002105,2]
[337391670,1725637193317,-420.0,0.00021083,2]
[337391671,1725637193389,-35183.54024075,0.00021095,5]
[337391672,1725637193459,-839.2,0.00021095,2]
[337391673,1725637193529,-151.0,0.00021095,2]
[337391674,1725637193597,-500.0,0.00021095,2]
[337391675,1725637193669,-919.19,0.00021095,2]
[337391676,1725637193740,-151.0,0.00021095,2]
[337391677,1725637193813,-500.0,0.00021095,2]
[337391678,1725637193881,-244.27849345,0.00021095,2]
[337391679,1725637193947,-500.0,0.00021095,2]
[337391680,1725637194016,-500.0,0.00021095,2]
[337391681,1725637194080,-500.0,0.00021095,2]
[337391682,1725637194142,-500.0,0.00021095,2]
[337391683,1725637194206,-151.0,0.00021095,2]
[337391684,1725637194267,-151.0,0.00021095,2]
[337391685,1725637194335,-500.0,0.00021095,2]
[337391686,1725637194397,-500.0,0.00021095,2]
[337391687,1725637194461,-372.65757234,0.00021095,2]
[337391688,1725637194523,-500.0,0.00021095,2]
[337391689,1725637194584,-500.0,0.00021095,2]
[337391690,1725637194649,-500.0,0.00021095,2]
[337391691,1725637194722,-151.0,0.00021095,2]
[337391692,1725637194788,-151.0,0.00021095,2]
[337391693,1725637194855,-151.0,0.00021095,2]
[337391694,1725637194924,-807.79,0.00021095,2]
[337391695,1725637194993,-151.0,0.00021095,2]
[337391696,1725637195060,-151.0,0.00021095,2]
[337391697,1725637195126,-809.63,0.00021095,2]
[337391698,1725637195195,-592.64096703,0.00021095,2]
[337391699,1725637195269,-500.0,0.00021095,2]
[337391700,1725637195344,-500.0,0.00021095,2]
[337391701,1725637195409,-507.36732931,0.00021095,2]
[337391702,1725637195476,-500.0,0.00021095,2]
[337391703,1725637195542,-500.0,0.00021095,2]
[337391704,1725637195606,-500.0,0.00021095,2]
[337391705,1725637195681,-500.0,0.00021095,2]
[337391706,1725637195752,-500.0,0.00021095,2]
[337391707,1725637195820,-197.49390886,0.00021095,2]
[337391708,1725637195886,-1385.18,0.00021095,2]
[337391709,1725637195952,-904.75,0.00021095,2]
[337391710,1725637196018,-886.52,0.00021095,2]
[337391711,1725637196085,-500.0,0.00021095,2]
[337391712,1725637196155,-500.0,0.00021095,2]
[337391713,1725637196224,-822.77,0.00021095,2]
[337391714,1725637196295,-945.5,0.00021095,2]
[337391715,1725637196356,-1199.51,0.00021095,2]
[337391716,1725637196421,-500.0,0.00021095,2]
[337391717,1725637196483,-500.0,0.00021095,2]
[337391718,1725637196543,-500.0,0.00021095,2]
[337391719,1725637196601,-500.0,0.00021095,2]
[337391720,1725637196662,-500.0,0.00021095,2]
[337391721,1725637196726,-1148.45,0.00021095,2]
[337391722,1725637196787,-500.0,0.00021095,2]
[337391723,1725637196851,-500.0,0.00021095,2]
[337391724,1725637196915,-500.0,0.00021095,2]
[337391725,1725637196976,-1115.09,0.00021095,2]
[337391726,1725637197040,-349.05299763,0.00021095,2]
[337391727,1725637197101,-500.0,0.00021095,2]
[337391728,1725637197166,-500.0,0.00021095,2]
[337391730,1725637197228,-500.0,0.00021095,2]
[337391731,1725637197299,-819.23,0.00021095,2]
[337391732,1725637197358,-500.0,0.00021095,2]
[337391733,1725637197422,-500.0,0.00021095,2]
[337391734,1725637197484,-500.0,0.00021095,2]
[337391735,1725637197549,-500.0,0.00021095,2]
[337391736,1725637197617,-1344.78,0.00021095,2]
[337391737,1725637197688,-598.52,0.00021095,2]
[337391738,1725637197755,-500.0,0.00021095,2]
[337391739,1725637197825,-974.11,0.00021095,2]
[337391740,1725637197896,-590.0,0.00021095,2]
[337391741,1725637197964,-500.0,0.00021095,2]
[337391742,1725637198031,-500.0,0.00021095,2]
[337391743,1725637198095,-789.17,0.00021095,2]
[337391744,1725637198162,-1665.05,0.00021095,2]
[337391745,1725637198235,-500.0,0.00021095,2]
[337391747,1725637198300,-500.0,0.00021095,2]
[337391748,1725637198363,-500.0,0.00021095,2]
[337391749,1725637198430,-500.0,0.00021095,2]
[337391750,1725637198514,-500.0,0.00021095,2]
[337391752,1725637198578,-500.0,0.00021095,2]
[337391753,1725637198642,-1000.15,0.00021095,2]
[337391754,1725637198708,-500.0,0.00021095,2]
[337391755,1725637198776,-531.29761562,0.00021095,2]
[337391756,1725637198844,-500.0,0.00021095,2]
[337391758,1725637198907,-650.96,0.00021095,2]
[337391759,1725637198971,-500.0,0.00021095,2]
[337391760,1725637199035,-1511.74,0.00021095,2]
[337391761,1725637199096,-500.0,0.00021095,2]
[337391762,1725637199161,-658.64,0.00021095,2]
[337391764,1725637199228,-500.0,0.00021095,2]
[337391765,1725637199294,-573.62,0.00021095,2]
[337391766,1725637199355,-500.0,0.00021095,2]
[337391767,1725637199420,-533.30509031,0.00021095,2]
[337391768,1725637199482,-500.0,0.00021095,2]
[337391769,1725637199551,-500.0,0.00021095,2]
[337391771,1725637199615,-500.0,0.00021095,2]
[337391772,1725637199682,-1501.9,0.00021095,2]
[337391773,1725637199754,-500.0,0.00021095,2]
[337391774,1725637199823,-1054.4,0.00021095,2]
[337391775,1725637199906,-1065.07,0.00021095,2]
[337391777,1725637199978,-500.0,0.00021095,2]
[337391778,1725637200046,-791.87,0.00021095,2]
[337391779,1725637200116,-745.45,0.00021095,2]
[337391780,1725637200186,-1110.03,0.00021095,2]
[337391781,1725637200279,-894.41,0.00021095,2]
[337391783,1725637200350,-500.0,0.00021095,2]
[337391784,1725637200422,-500.0,0.00021095,2]
[337391785,1725637200490,-911.93,0.00021095,2]
[337391786,1725637200553,-668.19,0.00021095,2]
[337391788,1725637200619,-979.54,0.00021095,2]
[337391789,1725637200681,-500.0,0.00021095,2]
[337391790,1725637200743,-500.0,0.00021095,2]
[337391791,1725637200803,-956.18,0.00021095,2]
[337391792,1725637200863,-500.0,0.00021095,2]
[337391793,1725637200924,-500.0,0.00021095,2]
[337391795,1725637200981,-20123.32,0.00021095,2]
[337391796,1725637201041,-531.03,0.00021095,2]
[337391797,1725637201099,-1029.44,0.00021095,2]
[337391798,1725637201160,-873.02,0.00021095,2]
[337391799,1725637201219,-1677.69,0.00021095,2]
[337391800,1725637201281,-49982.75,0.00021095,2]
[337391801,1725637201337,-247.531318,0.00021095,2]
[337391803,1725637201400,-1686.36,0.00021095,2]
[337391804,1725637201462,-151.0,0.00021095,2]
[337391805,1725637201518,-551.1,0.00021095,2]
[337391806,1725637201574,-247.531318,0.00021095,2]
[337391807,1725637201633,-1794.93,0.00021095,2]
[337391809,1725637201697,-1114.86,0.00021095,2]
[337391810,1725637201753,-1225.23,0.00021095,2]
[337391811,1725637201810,-500.0,0.00021095,2]
[337391812,1725637201867,-151.0,0.00021095,2]
[337391813,1725637201927,-500.0,0.00021095,2]
[337391814,1725637201987,-1436.9,0.00021095,2]
[337391816,1725637202052,-1006.68,0.00021095,2]
[337391818,1725637202119,-2270.59,0.00021095,2]
[337391819,1725637202179,-185.898427,0.00021095,2]
[337391820,1725637202239,-1333.99,0.00021095,2]
[337391821,1725637202297,-997.25,0.00021095,2]
[337391822,1725637202352,-500.0,0.00021095,2]
[337391823,1725637202413,-185.898427,0.00021095,2]
[337391825,1725637202481,-1406.88,0.00021095,2]
[337391826,1725637202540,-605.1,0.00021095,2]
[337391827,1725637202601,-500.0,0.00021095,2]
[337391828,1725637202661,-500.0,0.00021095,2]
[337391829,1725637202741,-1033.11,0.00021095,2]
[337391831,1725637202803,-2150.27,0.00021095,2]
[337391832,1725637202865,-1945.45,0.00021095,2]
[337391833,1725637202939,-525.23,0.00021095,2]
[337391834,1725637203005,-1874.8,0.00021095,2]
[337391835,1725637203089,-500.0,0.00021095,2]
[337391837,1725637203158,-3184.66,0.00021095,2]
[337391838,1725637203222,-1694.67,0.00021095,2]
[337391839,1725637203294,-787.42,0.00021095,2]
[337391840,1725637203362,-1297.52507,0.00021095,2]
[337391841,1725637203437,-826.3,0.00021095,2]
[337391843,1725637203518,-1297.52507,0.00021095,2]
[337391844,1725637203587,-793.09,0.00021095,2]
[337391845,1725637203657,-909.42,0.00021095,2]
[337391846,1725637203730,-1317.33,0.00021095,2]
[337391848,1725637203814,-1644.73,0.00021095,2]
[337391849,1725637203888,-1358.61,0.00021095,2]
[337391850,1725637203960,-579.63,0.00021095,2]
[337391852,1725637204223,-500.0,0.00021095,2]
[337391853,1725637204293,-151.0,0.00021095,2]
[337391854,1725637204361,-500.0,0.00021095,2]
[337391855,1725637204432,-500.0,0.00021095,2]
[337391856,1725637204500,-1027.81,0.00021095,2]
[337391857,1725637204567,-621.29,0.00021095,2]
[337391858,1725637204653,-651.73,0.00021095,2]
[337391860,1725637204735,-527.84,0.00021095,2]
[337391861,1725637204812,-559.750586,0.00021095,2]
[337391862,1725637204906,-1763.06,0.00021095,2]
[337391864,1725637204994,-887.46,0.00021095,2]
[337391865,1725637205067,-500.0,0.00021095,2]
[337391866,1725637205136,-559.750586,0.00021095,2]
[337391867,1725637205206,-1024.82,0.00021095,2]
[337391868,1725637205273,-1861.820439,0.00021095,2]
[337391869,1725637205336,-503.36,0.00021095,2]
[337391870,1725637205399,-151.0,0.00021095,2]
[337391872,1725637205466,-1861.820439,0.00021095,2]
[337391873,1725637205530,-400.62630765,0.00021095,2]
[337391874,1725637205595,-151.0,0.00021095,2]
[337391875,1725637205660,-590.03,0.00021095,2]
[337391876,1725637205737,-708.38,0.00021095,2]
[337391878,1725637205804,-2392.21,0.00021095,2]
[337391879,1725637205867,-500.0,0.00021095,2]
[337391880,1725637205932,-500.0,0.00021095,2]
[337391881,1725637205996,-597.14,0.00021095,2]
[337391883,1725637206069,-500.0,0.00021095,2]
[337391884,1725637206134,-529.29,0.00021095,2]
[337391885,1725637206194,-709.35,0.00021095,2]
[337391886,1725637206255,-722.337951,0.00021095,2]
[337391887,1725637206321,-1771.65,0.00021095,2]
[337391889,1725637206388,-500.0,0.00021095,2]
[337391890,1725637206452,-1886.71,0.00021095,2]
[337391891,1725637206516,-722.337951,0.00021095,2]
[337391892,1725637206575,-1497.7,0.00021095,2]
[337391893,1725637206635,-151.0,0.00021095,2]
[337391895,1725637206713,-500.0,0.00021095,2]
[337391896,1725637206775,-500.0,0.00021095,2]
[337391897,1725637206836,-500.0,0.00021095,2]
[337391898,1725637206900,-6237.69,0.00021095,2]
[337391899,1725637206962,-998.66029,0.00021095,2]
[337391900,1725637207048,-51565.56,0.00021095,2]
[337391902,1725637207123,-998.66029,0.00021095,2]
[337391903,1725637207187,-1073.24,0.00021095,2]
[337391904,1725637207246,-1705.58,0.00021095,2]
[337391905,1725637207307,-907.97,0.00021095,2]
[337391906,1725637207370,-895.056479,0.00021095,2]
[337391908,1725637207442,-895.056479,0.00021095,2]
[337391909,1725637207527,-500.0,0.00021095,2]
[337391910,1725637207593,-1508.74,0.00021095,2]
[337391911,1725637207678,-990.33,0.00021095,2]
[337391912,1725637207780,-500.0,0.00021095,2]
[337391913,1725637207854,-1638.19,0.00021095,2]
[337391914,1725637207921,-500.0,0.00021095,2]
[337391915,1725637207991,-500.0,0.00021095,2]
[337391916,1725637208057,-500.0,0.00021095,2]
[337391918,1725637208131,-302.83781933,0.00021095,2]
[337391919,1725637208197,-151.0,0.00021095,2]
[337391920,1725637208269,-749.89,0.00021095,2]
[337391921,1725637208344,-500.0,0.00021095,2]
[337391922,1725637208439,-500.0,0.00021095,2]
[337391924,1725637208526,-1588.35,0.00021095,2]
[337391925,1725637208592,-814.51,0.00021095,2]
[337391926,1725637208659,-680.85,0.00021095,2]
[337391927,1725637208735,-39993.96,0.00021095,2]
[337391928,1725637208810,-1534.62,0.000211,2]
[337391930,1725637208892,-300.0,0.000211,9]
[337391932,1725637209039,-1000.0,0.00021102,2]
[337391933,1725637209105,-1189.249557,0.00021305,2]
[337391934,1725637209170,-839.2,0.00021369,2]
[337391935,1725637209255,-500.0,0.00021369,2]
[337391937,1725637209318,-919.19,0.00021369,2]
[337391938,1725637209381,-196.020002,0.00021369,2]
[337391939,1725637209445,-500.0,0.00021369,2]
[337391940,1725637209511,-460.53985307,0.00021369,2]
[337391942,1725637209580,-500.0,0.00021369,2]
[337391943,1725637209646,-500.0,0.00021369,2]
[337391944,1725637209713,-500.0,0.00021369,2]
[337391945,1725637209780,-500.0,0.00021369,2]
[337391946,1725637209847,-500.0,0.00021369,2]
[337391947,1725637209914,-500.0,0.00021369,2]
[337391948,1725637209982,-500.0,0.00021369,2]
[337391949,1725637210071,-500.0,0.00021369,2]
[337391951,1725637210137,-807.79,0.00021369,2]
[337391952,1725637210204,-809.63,0.00021369,2]
[337391953,1725637210275,-626.08562892,0.00021369,2]
[337391955,1725637210339,-500.0,0.00021369,2]
[337391956,1725637210402,-500.0,0.00021369,2]
[337391957,1725637210464,-500.0,0.00021369,2]
[337391958,1725637210530,-151.0,0.00021369,2]
[337391959,1725637210597,-151.0,0.00021369,2]
[337391961,1725637210667,-500.0,0.00021369,2]
[337391962,1725637210734,-500.0,0.00021369,2]
[337391963,1725637210795,-500.0,0.00021369,2]
[337391964,1725637210856,-1385.18,0.00021369,2]
[337391965,1725637210918,-904.75,0.00021369,2]
[337391966,1725637210994,-886.52,0.00021369,2]
[337391968,1725637211056,-500.0,0.00021369,2]
[337391969,1725637211119,-151.0,0.00021369,2]
[337391970,1725637211187,-217.971362,0.00021369,2]
[337391971,1725637211259,-500.0,0.00021369,2]
[337391972,1725637211334,-822.77,0.00021369,2]
[337391974,1725637211403,-945.5,0.00021369,2]
[337391975,1725637211468,-1199.51,0.00021369,2]
[337391976,1725637211530,-187.99064009,0.00021369,2]
[337391977,1725637211595,-500.0,0.00021369,2]
[337391978,1725637211663,-307.2070303,0.00021369,2]
[337391980,1725637211735,-500.0,0.00021369,2]
[337391981,1725637211803,-500.0,0.00021369,2]
[337391982,1725637211870,-1148.45,0.00021369,2]
[337391983,1725637211944,-500.0,0.00021369,2]
[337391984,1725637212009,-500.0,0.00021369,2]
[337391985,1725637212084,-500.0,0.00021369,2]
[337391987,1725637212149,-1115.09,0.00021369,2]
[337391988,1725637212214,-500.0,0.00021369,2]
[337391989,1725637212274,-500.0,0.00021369,2]
[337391990,1725637212336,-310.96642908,0.00021369,2]
[337391991,1725637212396,-819.23,0.00021369,2]
[337391993,1725637212475,-500.0,0.00021369,2]
[337391994,1725637212561,-500.0,0.00021369,2]
[337391995,1725637212626,-500.0,0.00021369,2]
[337391996,1725637212708,-500.0,0.00021369,2]
[337391997,1725637212776,-1344.78,0.00021369,2]
[337391998,1725637212840,-598.52,0.00021369,2]
[337391999,1725637212913,-500.0,0.00021369,2]
[337392001,1725637212978,-974.11,0.00021369,2]
[337392002,1725637213041,-590.0,0.00021369,2]
[337392003,1725637213104,-500.0,0.00021369,2]
[337392005,1725637213339,-500.0,0.00021369,2]
[337392006,1725637213405,-789.17,0.00021369,2]
[337392007,1725637213464,-1665.05,0.00021369,2]
[337392008,1725637213526,-514.89073278,0.00021369,2]
[337392010,1725637213589,-500.0,0.00021369,2]
[337392011,1725637213650,-500.0,0.00021369,2]
[337392012,1725637213714,-500.0,0.00021369,2]
[337392013,1725637213776,-500.0,0.00021369,2]
[337392014,1725637213839,-500.0,0.00021369,2]
[337392015,1725637213903,-1000.15,0.00021369,2]
[337392016,1725637213983,-500.0,0.00021369,2]
[337392018,1725637214045,-500.0,0.00021369,2]
[337392019,1725637214106,-650.96,0.00021369,2]
[337392020,1725637214167,-500.0,0.00021369,2]
[337392021,1725637214228,-1511.74,0.00021369,2]
[337392022,1725637214293,-500.0,0.00021369,2]
[337392024,1725637214365,-658.64,0.00021369,2]
[337392025,1725637214428,-500.0,0.00021369,2]
[337392026,1725637214490,-573.62,0.00021369,2]
[337392027,1725637214550,-500.0,0.00021369,2]
[337392028,1725637214610,-500.0,0.00021369,2]
[337392029,1725637214676,-563.50343372,0.00021369,2]
[337392031,1725637214745,-500.0,0.00021369,2]
[337392032,1725637214816,-1501.9,0.00021369,2]
[337392033,1725637214892,-500.0,0.00021369,2]
[337392034,1725637214999,-1054.4,0.00021369,2]
[337392035,1725637215097,-1065.07,0.00021369,2]
[337392037,1725637215170,-365.846207,0.00021369,2]
[337392038,1725637215242,-791.87,0.00021369,2]
[337392039,1725637215302,-745.45,0.00021369,2]
[337392040,1725637215362,-1110.03,0.00021369,2]
[337392041,1725637215438,-894.41,0.00021369,2]
[337392043,1725637215498,-548.90483191,0.00021369,2]
[337392044,1725637215560,-500.0,0.00021369,2]
[337392045,1725637215621,-911.93,0.00021369,2]
[337392046,1725637215690,-668.19,0.00021369,2]
[337392047,1725637215754,-979.54,0.00021369,2]
[337392049,1725637215830,-500.0,0.00021369,2]
[337392050,1725637215896,-500.0,0.00021369,2]
[337392051,1725637215960,-956.18,0.00021369,2]
[337392052,1725637216030,-500.0,0.00021369,2]
[337392053,1725637216097,-500.0,0.00021369,2]
[337392054,1725637216170,-20123.32,0.00021369,2]
[337392056,1725637216235,-531.03,0.00021369,2]
[337392057,1725637216297,-1029.44,0.00021369,2]
[337392058,1725637216356,-873.02,0.00021369,2]
[337392059,1725637216414,-1677.69,0.00021369,2]
[337392060,1725637216473,-49982.75,0.00021369,2]
[337392061,1725637216531,-1686.36,0.00021369,2]
[337392063,1725637216602,-551.1,0.00021369,2]
[337392064,1725637216667,-1794.93,0.00021369,2]
[337392065,1725637216732,-1114.86,0.00021369,2]
[337392066,1725637216794,-1225.23,0.00021369,2]
[337392067,1725637216857,-500.0,0.00021369,2]
[337392069,1725637216934,-500.0,0.00021369,2]
[337392070,1725637216997,-1436.9,0.00021369,2]
[337392071,1725637217059,-1006.68,0.00021369,2]
[337392072,1725637217119,-2270.59,0.00021369,2]
[337392073,1725637217185,-1333.99,0.00021369,2]
[337392074,1725637217249,-997.25,0.00021369,2]
[337392076,1725637217313,-500.0,0.00021369,2]
[337392077,1725637217375,-1406.88,0.00021369,2]
[337392078,1725637217444,-605.1,0.00021369,2]
[337392079,1725637217509,-500.0,0.00021369,2]
[337392080,1725637217573,-500.0,0.00021369,2]
[337392081,1725637217655,-1033.11,0.00021369,2]
[337392083,1725637217726,-2150.27,0.00021369,2]
[337392084,1725637217799,-1945.45,0.00021369,2]
[337392085,1725637217865,-525.23,0.00021369,2]
[337392086,1725637217935,-1874.8,0.00021369,2]
[337392087,1725637218002,-500.0,0.00021369,2]
[337392089,1725637218075,-3184.66,0.00021369,2]
[337392090,1725637218144,-1694.67,0.00021369,2]
[337392091,1725637218212,-787.42,0.00021369,2]
[337392092,1725637218280,-826.3,0.00021369,2]
[337392093,1725637218348,-793.09,0.00021369,2]
[337392095,1725637218417,-909.42,0.00021369,2]
[337392096,1725637218491,-1317.33,0.00021369,2]
[337392097,1725637218558,-1644.73,0.00021369,2]
[337392098,1725637218624,-1358.61,0.00021369,2]
[337392099,1725637218694,-579.63,0.00021369,2]
[337392100,1725637218773,-500.0,0.00021369,2]
[337392102,1725637218844,-500.0,0.00021369,2]
[337392103,1725637218915,-500.0,0.00021369,2]
[337392104,1725637218983,-1027.81,0.00021369,2]
[337392105,1725637219053,-621.29,0.00021369,2]
[337392107,1725637219129,-651.73,0.00021369,2]
[337392108,1725637219196,-527.84,0.00021369,2]
[337392109,1725637219259,-1763.06,0.00021369,2]
[337392110,1725637219324,-887.46,0.00021369,2]
[337392111,1725637219389,-500.0,0.00021369,2]
[337392112,1725637219460,-1024.82,0.00021369,2]
[337392114,1725637219525,-503.36,0.00021369,2]
[337392115,1725637219590,-590.03,0.00021369,2]
[337392116,1725637219655,-708.38,0.00021369,2]
[337392117,1725637219721,-2392.21,0.00021369,2]
[337392118,1725637219784,-500.0,0.00021369,2]
[337392119,1725637219859,-643.44178965,0.00021369,2]
[337392121,1725637219922,-597.14,0.00021369,2]
[337392122,1725637219988,-547.96162697,0.00021369,2]
[337392123,1725637220052,-529.29,0.00021369,2]
[337392124,1725637220116,-709.35,0.00021369,2]
[337392125,1725637220179,-1771.65,0.00021369,2]
[337392126,1725637220246,-500.0,0.00021369,2]
[337392127,1725637220317,-1886.71,0.00021369,2]
[337392128,1725637220394,-1497.7,0.00021369,2]
[337392130,1725637220465,-500.0,0.00021369,2]
[337392132,1725637220527,-500.0,0.00021369,2]
[337392133,1725637220590,-500.0,0.00021369,2]
[337392134,1725637220655,-6237.69,0.00021369,2]
[337392135,1725637220718,-51565.56,0.00021369,2]
[337392136,1725637220780,-1073.24,0.00021369,2]
[337392137,1725637220844,-1705.58,0.00021369,2]
[337392138,1725637220907,-907.97,0.00021369,2]
[337392139,1725637220975,-500.0,0.00021369,2]
[337392140,1725637221050,-1508.74,0.00021369,2]
[337392141,1725637221115,-990.33,0.00021369,2]
[337392142,1725637221179,-500.0,0.00021369,2]
[337392143,1725637221254,-1638.19,0.00021369,2]
[337392144,1725637221318,-500.0,0.00021369,2]
[337392145,1725637221380,-622.3731775,0.00021369,2]
[337392146,1725637221447,-500.0,0.00021369,2]
[337392147,1725637221508,-749.89,0.00021369,2]
[337392148,1725637221568,-500.0,0.00021369,2]
[337392149,1725637221629,-500.0,0.00021369,2]
[337392150,1725637221695,-1588.35,0.00021369,2]
[337392151,1725637221755,-814.51,0.00021369,2]
[337392152,1725637221817,-680.85,0.00021369,2]
[337392153,1725637221881,-39993.96,0.00021369,2]
[337392154,1725637221945,-1000.0,0.00021419,2]
[337392155,1725637222008,-1000.0,0.00021428,2]
[337392156,1725637222069,-1000.0,0.00021528,2]
[337392157,1725637222130,-1000.0,0.00021542,2]
[337392158,1725637222368,-1000.0,0.00021545,2]
[337392159,1725637222432,-1000.0,0.00021565,2]
[337392160,1725637222498,-1000.0,0.00021587,2]
[337392161,1725637222562,-1000.0,0.00021593,2]
[337392162,1725637222626,-1000.0,0.00021609,2]
[337392163,1725637222693,-992.94360324,0.00021612,2]
[337392164,1725637222759,-1000.0,0.0002162,2]
[337392165,1725637222826,-1000.0,0.00021638,2]
[337392166,1725637222892,-839.2,0.00021643,2]
[337392167,1725637222957,-151.0,0.00021643,2]
[337392168,1725637223023,-500.0,0.00021643,2]
[337392169,1725637223085,-919.19,0.00021643,2]
[337392170,1725637223148,-500.0,0.00021643,2]
[337392171,1725637223212,-521.89188553,0.00021643,2]
[337392172,1725637223276,-532.20765075,0.00021643,2]
[337392173,1725637223337,-500.0,0.00021643,2]
[337392174,1725637223395,-151.0,0.00021643,2]
[337392175,1725637223455,-151.0,0.00021643,2]
[337392176,1725637223516,-500.0,0.00021643,2]
[337392177,1725637223577,-500.0,0.00021643,2]
[337392178,1725637223639,-500.0,0.00021643,2]
[337392179,1725637223709,-500.0,0.00021643,2]
[337392180,1725637223783,-500.0,0.00021643,2]
[337392181,1725637223852,-151.0,0.00021643,2]
[337392182,1725637223919,-151.0,0.00021643,2]
[337392183,1725637223987,-151.0,0.00021643,2]